fUSD/lending_fUSD_20260624
["ID","MTS","AMOUNT","RATE_DAILY","PERIOD"]
[426293404,1782250247000,-154.22317271,0.00026805,2]
[426293405,1782250247000,-344.98324682,0.00026805,2]
[426293407,1782250247000,-441.66108262,0.00026805,2]
[426293406,1782250247000,-208.70961373,0.00026805,2]
[426293408,1782250247000,-181.87516516,0.00026805,2]
[426293409,1782250247000,-337.01125627,0.00026805,2]
[426293410,1782250247000,-316.19312258,0.00026805,2]
[426293411,1782250247000,-417.25053912,0.00026805,2]
[426293412,1782250247000,-224.78717415,0.00026805,2]
[426293414,1782250247000,-445.00156289,0.00026805,2]
[426293440,1782250247000,-209.40437684,0.0002704,2]
[426293431,1782250247000,-500.0,0.00027,7]
[426293441,1782250247000,-628.78788257,0.0002704,2]
[426293465,1782250247000,-500.0,0.00027397,2]
[426293469,1782250247000,-500.0,0.00027397,2]
[426293464,1782250247000,-500.0,0.00027397,2]
[426293474,1782250247000,-500.0,0.00027397,2]
[426293467,1782250247000,-500.0,0.00027397,2]
[426293472,1782250247000,-500.0,0.00027397,2]
[426293468,1782250247000,-500.0,0.00027397,2]
[426293473,1782250247000,-500.0,0.00027397,2]
[426293476,1782250247000,-570.14631605,0.00027397,2]
[426293486,1782250247000,-530.46,0.00027397,2]
[426293475,1782250247000,-500.0,0.00027397,2]
[426293477,1782250247000,-150.0,0.00027397,2]
[426293485,1782250247000,-3095.42,0.00027397,2]
[426293479,1782250247000,-1500.0,0.00027397,2]
[426293483,1782250247000,-1475.2,0.00027397,2]
[426293478,1782250247000,-3000.0,0.00027397,2]
[426293484,1782250247000,-1351.55,0.00027397,2]
[426293481,1782250247000,-178.65,0.00027397,31]
[426293482,1782250247000,-151.27539475,0.00027397,10]
[426293487,1782250247000,-300.0,0.00027397,2]
[426293439,1782250247000,-1915.47834585,0.0002704,2]
[426293466,1782250247000,-500.0,0.00027397,2]
[426293471,1782250247000,-500.0,0.00027397,2]
[426293480,1782250247000,-814.18765773,0.00027397,2]
[426293463,1782250247000,-500.0,0.00027397,2]
[426293444,1782250247000,-500.0,0.00027068,2]
[426293470,1782250247000,-500.0,0.00027397,2]
[426293442,1782250247000,-225.18697532,0.0002704,2]
[426293443,1782250247000,-151.0,0.0002704,2]
[426293445,1782250247000,-2000.0,0.0002708,2]
[426293447,1782250247000,-1538.77,0.000271,7]
[426293448,1782250247000,-15239.35068509,0.00027111,2]
[426293446,1782250247000,-500.0,0.0002708,2]
[426293453,1782250247000,-1534.0,0.00027266,2]
[426293450,1782250247000,-464.452095,0.00027178,2]
[426293449,1782250247000,-530.0,0.00027132,2]
[426293451,1782250247000,-454.427197,0.00027181,2]
[426293455,1782250247000,-1915.47834585,0.00027314,2]
[426293454,1782250247000,-680.0,0.00027273,9]
[426293457,1782250247000,-1000.0,0.00027344,2]
[426293456,1782250247000,-15239.35068509,0.00027333,2]
[426293458,1782250247000,-528.14517642,0.00027397,120]
[426293459,1782250247000,-160.0,0.00027397,2]
[426293462,1782250247000,-500.0,0.00027397,2]
[426293452,1782250247000,-2214.22,0.00027226,7]
[426293461,1782250247000,-500.0,0.00027397,2]
[426293460,1782250247000,-2357.38421107,0.00027397,2]
[426293535,1782250248000,-151.27539405,0.00027533,17]
[426293529,1782250248000,-572.48468924,0.00027521,2]
[426293528,1782250248000,-580.21957929,0.00027521,2]
[426293526,1782250248000,-339.59110567,0.00027521,2]
[426293527,1782250248000,-591.73164343,0.00027521,2]
[426293522,1782250248000,-346.23003114,0.00027521,2]
[426293523,1782250248000,-545.35701147,0.00027521,2]
[426293521,1782250248000,-642.25185637,0.00027521,2]
[426293518,1782250248000,-535.22538419,0.00027521,2]
[426293534,1782250248000,-452.47641145,0.00027525,2]
[426293519,1782250248000,-453.26492753,0.00027521,2]
[426293525,1782250248000,-456.47619497,0.00027521,2]
[426293532,1782250248000,-464.94591892,0.00027521,2]
[426293542,1782250248000,-6290.6,0.0002755,30]
[426293536,1782250248000,-2473.222,0.00027533,16]
[426293531,1782250248000,-577.97170941,0.00027521,2]
[426293533,1782250248000,-558.69685827,0.00027521,2]
[426293537,1782250248000,-186.5,0.00027533,16]
[426293539,1782250248000,-936.37,0.0002755,2]
[426293538,1782250248000,-285.941618,0.0002755,2]
[426293549,1782250248000,-936.37,0.0002758,7]
[426293550,1782250248000,-936.6,0.0002758,7]
[426293540,1782250248000,-6017.6,0.0002755,30]
[426293541,1782250248000,-4282.58,0.0002755,30]
[426293543,1782250248000,-6019.09,0.0002755,30]
[426293544,1782250248000,-936.6,0.0002755,2]
[426293520,1782250248000,-573.16921164,0.00027521,2]
[426293530,1782250248000,-408.02370719,0.00027521,2]
[426293517,1782250248000,-245.84896075,0.00027521,2]
[426293489,1782250248000,-25163.55,0.00027397,10]
[426293524,1782250248000,-623.16390082,0.00027521,2]
[426293545,1782250248000,-4282.45,0.0002755,30]
[426293499,1782250248000,-150.0,0.000274,7]
[426293493,1782250248000,-150.0,0.00027397,30]
[426293491,1782250248000,-169.79555284,0.00027397,2]
[426293498,1782250248000,-2152.43,0.000274,7]
[426293494,1782250248000,-150.0,0.00027398,2]
[426293492,1782250248000,-186.23228609,0.00027397,2]
[426293497,1782250248000,-1154.55,0.000274,2]
[426293488,1782250248000,-16116.7,0.00027397,10]
[426293496,1782250248000,-1000.0,0.000274,2]
[426293490,1782250248000,-20969.62,0.00027397,10]
[426293495,1782250248000,-151.27539405,0.00027398,11]
[426293501,1782250248000,-1000.0,0.000274,2]
[426293502,1782250248000,-1231.83,0.000274,2]
[426293500,1782250248000,-1000.0,0.000274,2]
[426293507,1782250248000,-4179.48,0.000274,2]
[426293504,1782250248000,-4179.48,0.000274,2]
[426293503,1782250248000,-4179.48,0.000274,2]
[426293511,1782250248000,-151.27539405,0.00027437,15]
[426293509,1782250248000,-151.27539405,0.00027414,14]
[426293510,1782250248000,-185.0,0.00027431,5]
[426293512,1782250248000,-151.27539405,0.00027476,16]
[426293505,1782250248000,-4179.48,0.000274,2]
[426293508,1782250248000,-151.27539405,0.00027402,12]
[426293514,1782250248000,-1000.0,0.000275,7]
[426293513,1782250248000,-1435.304348,0.000275,30]
[426293516,1782250248000,-339.71,0.00027507,9]
[426293515,1782250248000,-260.0,0.00027507,9]
[426293547,1782250248000,-15239.35068509,0.00027556,2]
[426293506,1782250248000,-4179.48,0.000274,2]
[426293546,1782250248000,-6290.59,0.0002755,30]
[426293581,1782250248000,-274.21558053,0.00027611,2]
[426293588,1782250248000,-459.58392577,0.00027611,2]
[426293594,1782250248000,-308.44634542,0.00027655,2]
[426293590,1782250248000,-936.6,0.00027611,30]
[426293589,1782250248000,-936.37,0.00027611,30]
[426293584,1782250248000,-165.52322809,0.00027611,2]
[426293585,1782250248000,-499.62950898,0.00027611,2]
[426293586,1782250248000,-260.58591454,0.00027611,2]
[426293604,1782250248000,-449.5743483,0.00027655,2]
[426293587,1782250248000,-380.05180616,0.00027611,2]
[426293591,1782250248000,-151.27539405,0.00027612,18]
[426293595,1782250248000,-161.25019776,0.00027655,2]
[426293593,1782250248000,-936.6,0.00027641,2]
[426293596,1782250248000,-360.91299125,0.00027655,2]
[426293598,1782250248000,-417.41922746,0.00027655,2]
[426293608,1782250248000,-459.51818205,0.00027655,2]
[426293599,1782250248000,-662.49162393,0.00027655,2]
[426293601,1782250248000,-474.28968387,0.00027655,2]
[426293600,1782250248000,-363.75033032,0.00027655,2]
[426293609,1782250248000,-464.48770463,0.00027655,2]
[426293597,1782250248000,-517.47487023,0.00027655,2]
[426293602,1782250248000,-505.5168844,0.00027655,2]
[426293603,1782250248000,-625.87580868,0.00027655,2]
[426293607,1782250248000,-619.88709828,0.00027655,2]
[426293605,1782250248000,-484.05514957,0.00027655,2]
[426293606,1782250248000,-667.50234434,0.00027655,2]
[426293548,1782250248000,-200.0,0.00027568,2]
[426293579,1782250248000,-443.62731349,0.00027611,2]
[426293582,1782250248000,-898.12984814,0.00027611,2]
[426293592,1782250248000,-936.37,0.00027641,2]
[426293580,1782250248000,-234.07175158,0.00027611,2]
[426293583,1782250248000,-471.54700355,0.00027611,2]
[426293551,1782250248000,-527.32278436,0.00027588,2]
[426293555,1782250248000,-233.5188934,0.00027588,2]
[426293554,1782250248000,-628.78788257,0.00027588,2]
[426293553,1782250248000,-217.15233878,0.00027588,2]
[426293556,1782250248000,-151.0,0.00027588,2]
[426293559,1782250248000,-150.0,0.00027607,2]
[426293562,1782250248000,-221.17687394,0.00027611,2]
[426293558,1782250248000,-486.17053644,0.00027607,2]
[426293557,1782250248000,-2000.0,0.00027601,7]
[426293561,1782250248000,-570.69801826,0.00027611,2]
[426293560,1782250248000,-1000.0,0.0002761,2]
[426293563,1782250248000,-508.78086996,0.00027611,2]
[426293564,1782250248000,-618.26154528,0.00027611,2]
[426293552,1782250248000,-1915.47834585,0.00027588,2]
[426293578,1782250248000,-490.63277927,0.00027611,2]
[426293575,1782250248000,-533.80217289,0.00027611,2]
[426293567,1782250248000,-193.93112091,0.00027611,2]
[426293577,1782250248000,-525.95459764,0.00027611,2]
[426293576,1782250248000,-525.93253583,0.00027611,2]
[426293574,1782250248000,-358.42823985,0.00027611,2]
[426293572,1782250248000,-538.34075731,0.00027611,2]
[426293570,1782250248000,-194.75395088,0.00027611,2]
[426293571,1782250248000,-767.06388613,0.00027611,2]
[426293569,1782250248000,-238.00948578,0.00027611,2]
[426293566,1782250248000,-246.98054318,0.00027611,2]
[426293565,1782250248000,-911.6273265,0.00027611,2]
[426293568,1782250248000,-587.36754951,0.00027611,2]
[426293573,1782250248000,-305.27841125,0.00027611,2]
[426293651,1782250249000,-1538.77,0.000278,7]
[426293662,1782250249000,-152.0,0.00027867,7]
[426293653,1782250249000,-150.0,0.00027814,7]
[426293652,1782250249000,-188.24,0.00027814,2]
[426293663,1782250249000,-152.0,0.00027867,3]
[426293650,1782250249000,-2152.43,0.000278,7]
[426293645,1782250249000,-936.37,0.00027763,7]
[426293639,1782250249000,-4282.45,0.00027711,7]
[426293642,1782250249000,-936.37,0.00027733,2]
[426293647,1782250249000,-15239.35068509,0.00027778,2]
[426293646,1782250249000,-936.6,0.00027763,7]
[426293655,1782250249000,-936.37,0.00027824,2]
[426293649,1782250249000,-936.6,0.00027794,30]
[426293656,1782250249000,-936.6,0.00027824,2]
[426293673,1782250249000,-214.5,0.000279,2]
[426293657,1782250249000,-163.56,0.00027841,2]
[426293661,1782250249000,-1915.47834585,0.00027862,2]
[426293658,1782250249000,-151.27539405,0.00027854,21]
[426293659,1782250249000,-936.37,0.00027855,7]
[426293660,1782250249000,-936.6,0.00027855,7]
[426293664,1782250249000,-6017.6,0.00027872,2]
[426293666,1782250249000,-6290.6,0.00027872,2]
[426293665,1782250249000,-4282.58,0.00027872,2]
[426293667,1782250249000,-6019.09,0.00027872,2]
[426293668,1782250249000,-4282.45,0.00027872,2]
[426293676,1782250249000,-1000.0,0.000279,2]
[426293675,1782250249000,-310.0,0.000279,2]
[426293671,1782250249000,-936.37,0.00027885,30]
[426293648,1782250249000,-936.37,0.00027794,30]
[426293654,1782250249000,-530.0,0.00027816,10]
[426293641,1782250249000,-151.27539405,0.00027718,19]
[426293615,1782250249000,-427.20888625,0.00027655,2]
[426293640,1782250249000,-6290.59,0.00027711,7]
[426293611,1782250249000,-253.22983918,0.00027655,2]
[426293670,1782250249000,-680.0,0.00027879,9]
[426293617,1782250249000,-506.9630636,0.00027655,2]
[426293623,1782250249000,-33323.2708,0.00027694,2]
[426293622,1782250249000,-936.6,0.00027672,7]
[426293614,1782250249000,-418.49629614,0.00027655,2]
[426293610,1782250249000,-572.03855525,0.00027655,2]
[426293612,1782250249000,-458.46109611,0.00027655,2]
[426293621,1782250249000,-936.37,0.00027672,7]
[426293613,1782250249000,-276.58142306,0.00027655,2]
[426293618,1782250249000,-591.49800381,0.00027655,2]
[426293620,1782250249000,-500.0,0.0002767,2]
[426293619,1782250249000,-420.74537305,0.00027655,2]
[426293616,1782250249000,-468.74066131,0.00027655,2]
[426293643,1782250249000,-936.6,0.00027733,2]
[426293625,1782250249000,-178.64205784,0.00027699,2]
[426293628,1782250249000,-200.0,0.000277,2]
[426293626,1782250249000,-30628.49161614,0.000277,2]
[426293627,1782250249000,-200.0,0.000277,2]
[426293637,1782250249000,-6290.6,0.00027711,7]
[426293632,1782250249000,-166.0,0.000277,7]
[426293624,1782250249000,-2000.0,0.00027694,2]
[426293636,1782250249000,-4282.58,0.00027711,7]
[426293629,1782250249000,-167.31875847,0.000277,7]
[426293631,1782250249000,-166.0,0.000277,7]
[426293634,1782250249000,-936.6,0.00027702,30]
[426293633,1782250249000,-936.37,0.00027702,30]
[426293630,1782250249000,-291.5050583,0.000277,7]
[426293638,1782250249000,-6019.09,0.00027711,7]
[426293644,1782250249000,-2357.38421107,0.0002774,2]
[426293635,1782250249000,-6017.6,0.00027711,7]
[426293669,1782250249000,-6290.59,0.00027872,2]
[426293672,1782250249000,-936.6,0.00027885,30]
[426293674,1782250249000,-886.59934997,0.000279,2]
[426293710,1782250249000,-1000.0,0.00027999,2]
[426293706,1782250249000,-1000.0,0.00027999,2]
[426293715,1782250249000,-1000.0,0.00027999,2]
[426293711,1782250249000,-1000.0,0.00027999,2]
[426293713,1782250249000,-1000.0,0.00027999,2]
[426293712,1782250249000,-1000.0,0.00027999,2]
[426293719,1782250249000,-1000.0,0.00027999,2]
[426293727,1782250249000,-1000.0,0.00027999,2]
[426293729,1782250249000,-1000.0,0.00027999,2]
[426293718,1782250249000,-1000.0,0.00027999,2]
[426293728,1782250249000,-1000.0,0.00027999,2]
[426293730,1782250249000,-1000.0,0.00027999,2]
[426293721,1782250249000,-1000.0,0.00027999,2]
[426293723,1782250249000,-1000.0,0.00027999,2]
[426293731,1782250249000,-1000.0,0.00027999,2]
[426293722,1782250249000,-1000.0,0.00027999,2]
[426293726,1782250249000,-1000.0,0.00027999,2]
[426293734,1782250249000,-1000.0,0.00027999,2]
[426293677,1782250249000,-200.0,0.000279,2]
[426293742,1782250249000,-1000.0,0.00027999,2]
[426293735,1782250249000,-1000.0,0.00027999,2]
[426293740,1782250249000,-1000.0,0.00027999,2]
[426293732,1782250249000,-1000.0,0.00027999,2]
[426293707,1782250249000,-1000.0,0.00027999,2]
[426293739,1782250249000,-1000.0,0.00027999,2]
[426293738,1782250249000,-1000.0,0.00027999,2]
[426293737,1782250249000,-1000.0,0.00027999,2]
[426293736,1782250249000,-1000.0,0.00027999,2]
[426293741,1782250249000,-1000.0,0.00027999,2]
[426293724,1782250249000,-1000.0,0.00027999,2]
[426293725,1782250249000,-1000.0,0.00027999,2]
[426293733,1782250249000,-1000.0,0.00027999,2]
[426293709,1782250249000,-1000.0,0.00027999,2]
[426293720,1782250249000,-1000.0,0.00027999,2]
[426293708,1782250249000,-1000.0,0.00027999,2]
[426293679,1782250249000,-936.6,0.00027916,2]
[426293705,1782250249000,-1000.0,0.00027999,2]
[426293689,1782250249000,-814.18765773,0.00027945,2]
[426293690,1782250249000,-936.37,0.00027946,7]
[426293678,1782250249000,-936.37,0.00027916,2]
[426293681,1782250249000,-643.0,0.00027918,2]
[426293682,1782250249000,-1000.0,0.00027929,2]
[426293680,1782250249000,-652.0,0.00027918,2]
[426293683,1782250249000,-1000.0,0.00027929,2]
[426293686,1782250249000,-559842.6097628,0.0002793,2]
[426293687,1782250249000,-512.35580421,0.00027932,2]
[426293688,1782250249000,-3000.0,0.00027945,2]
[426293684,1782250249000,-1000.0,0.00027929,2]
[426293691,1782250249000,-936.6,0.00027946,7]
[426293692,1782250249000,-512.35580421,0.00027965,2]
[426293685,1782250249000,-512.35580421,0.00027929,2]
[426293693,1782250249000,-500.0,0.0002797,2]
[426293714,1782250249000,-1000.0,0.00027999,2]
[426293694,1782250249000,-200.0,0.00027977,2]
[426293717,1782250249000,-1000.0,0.00027999,2]
[426293703,1782250249000,-1000.0,0.00027999,2]
[426293699,1782250249000,-454.427197,0.00027985,7]
[426293696,1782250249000,-936.6,0.00027977,30]
[426293700,1782250249000,-512.35580421,0.0002799,2]
[426293716,1782250249000,-1000.0,0.00027999,2]
[426293697,1782250249000,-200.0,0.00027977,2]
[426293704,1782250249000,-1000.0,0.00027999,2]
[426293698,1782250249000,-464.452095,0.00027983,7]
[426293695,1782250249000,-936.37,0.00027977,30]
[426293702,1782250249000,-1000.0,0.00027999,2]
[426293701,1782250249000,-1000.0,0.00027999,2]
[426293797,1782250250000,-386.2221766,0.00028116,2]
[426293787,1782250250000,-936.37,0.00028099,2]
[426293788,1782250250000,-936.6,0.00028099,2]
[426293786,1782250250000,-5044.84610968,0.00028094,2]
[426293796,1782250250000,-156.04383365,0.00028116,2]
[426293780,1782250250000,-770.62894588,0.00028086,2]
[426293783,1782250250000,-768.451621,0.00028088,10]
[426293782,1782250250000,-744.92914436,0.00028086,2]
[426293784,1782250250000,-603.30188193,0.0002809,2]
[426293773,1782250250000,-830.8852011,0.00028086,2]
[426293779,1782250250000,-612.03556079,0.00028086,2]
[426293798,1782250250000,-229.16959365,0.00028116,2]
[426293781,1782250250000,-619.9278919,0.00028086,2]
[426293790,1782250250000,-162.93762488,0.00028116,2]
[426293811,1782250250000,-628.78788257,0.00028136,2]
[426293785,1782250250000,-491.6979215,0.0002809,2]
[426293791,1782250250000,-159.8875281,0.00028116,2]
[426293793,1782250250000,-160.10957678,0.00028116,2]
[426293792,1782250250000,-405.07360901,0.00028116,2]
[426293795,1782250250000,-163.91760907,0.00028116,2]
[426293794,1782250250000,-199.90002,0.00028116,2]
[426293799,1782250250000,-151.03262562,0.00028116,2]
[426293802,1782250250000,-423.01053378,0.00028116,2]
[426293801,1782250250000,-155.35417897,0.00028116,2]
[426293800,1782250250000,-419.139914,0.00028116,2]
[426293804,1782250250000,-159.86961265,0.00028116,2]
[426293805,1782250250000,-163.13347052,0.00028128,2]
[426293803,1782250250000,-400.00879156,0.00028116,2]
[426293778,1782250250000,-763.31291899,0.00028086,2]
[426293789,1782250250000,-200.0,0.00028116,2]
[426293775,1782250250000,-509.38665851,0.00028086,2]
[426293743,1782250250000,-1000.0,0.00027999,2]
[426293777,1782250250000,-773.62610572,0.00028086,2]
[426293806,1782250250000,-936.39,0.0002813,7]
[426293744,1782250250000,-1000.0,0.00027999,2]
[426293745,1782250250000,-431419.7560557,0.00028,2]
[426293747,1782250250000,-300.0,0.00028,20]
[426293746,1782250250000,-50731.30548094,0.00028,8]
[426293748,1782250250000,-600.0,0.00028,2]
[426293754,1782250250000,-936.6,0.00028007,2]
[426293751,1782250250000,-216.39158367,0.00028,30]
[426293752,1782250250000,-216.39158367,0.00028,10]
[426293753,1782250250000,-936.37,0.00028007,2]
[426293756,1782250250000,-6017.6,0.00028033,30]
[426293755,1782250250000,-151.27539405,0.00028024,22]
[426293757,1782250250000,-4282.58,0.00028033,30]
[426293749,1782250250000,-1870.01,0.00028,7]
[426293750,1782250250000,-15239.35068509,0.00028,2]
[426293761,1782250250000,-6290.59,0.00028033,30]
[426293760,1782250250000,-4282.45,0.00028033,30]
[426293776,1782250250000,-788.97552458,0.00028086,2]
[426293772,1782250250000,-727.14268196,0.00028086,2]
[426293763,1782250250000,-936.37,0.00028038,7]
[426293768,1782250250000,-713.63384559,0.00028086,2]
[426293767,1782250250000,-2357.38421107,0.00028082,2]
[426293765,1782250250000,-936.37,0.00028068,30]
[426293774,1782250250000,-608.63492662,0.00028086,2]
[426293762,1782250250000,-7044.9,0.00028036,7]
[426293766,1782250250000,-936.6,0.00028068,30]
[426293758,1782250250000,-6290.6,0.00028033,30]
[426293769,1782250250000,-679.89739129,0.00028086,2]
[426293771,1782250250000,-856.33580849,0.00028086,2]
[426293770,1782250250000,-764.22561552,0.00028086,2]
[426293759,1782250250000,-6019.09,0.00028033,30]
[426293764,1782250250000,-936.6,0.00028038,7]
[426293808,1782250250000,-527.32278436,0.00028136,2]
[426293834,1782250250000,-711.73623052,0.00028177,2]
[426293809,1782250250000,-225.18697532,0.00028136,2]
[426293847,1782250250000,-612.7785677,0.00028177,2]
[426293848,1782250250000,-512.35580421,0.00028179,2]
[426293846,1782250250000,-570.07770924,0.00028177,2]
[426293849,1782250250000,-6017.6,0.00028194,7]
[426293851,1782250250000,-6290.6,0.00028194,7]
[426293850,1782250250000,-4282.58,0.00028194,7]
[426293852,1782250250000,-6019.09,0.00028194,7]
[426293863,1782250250000,-674.36152245,0.00028222,2]
[426293853,1782250250000,-4282.45,0.00028194,7]
[426293865,1782250250000,-890.00312578,0.00028222,2]
[426293854,1782250250000,-6290.59,0.00028194,7]
[426293864,1782250250000,-726.08272435,0.00028222,2]
[426293856,1782250250000,-2152.43,0.000282,7]
[426293855,1782250250000,-300.0,0.000282,20]
[426293844,1782250250000,-666.17267864,0.00028177,2]
[426293862,1782250250000,-834.50107824,0.00028222,2]
[426293858,1782250250000,-482.56772497,0.00028222,2]
[426293859,1782250250000,-626.12884119,0.00028222,2]
[426293861,1782250250000,-632.38624516,0.00028222,2]
[426293867,1782250250000,-689.27727307,0.00028222,2]
[426293868,1782250250000,-619.3169395,0.00028222,2]
[426293866,1782250250000,-826.51613104,0.00028222,2]
[426293870,1782250250000,-506.45967836,0.00028222,2]
[426293869,1782250250000,-762.71807367,0.00028222,2]
[426293873,1782250250000,-883.32216524,0.00028222,2]
[426293871,1782250250000,-462.66951813,0.00028222,2]
[426293875,1782250250000,-553.16284611,0.00028222,2]
[426293872,1782250250000,-689.96649363,0.00028222,2]
[426293874,1782250250000,-545.62549548,0.00028222,2]
[426293810,1782250250000,-1915.47834585,0.00028136,2]
[426293857,1782250250000,-5044.84610968,0.00028208,2]
[426293845,1782250250000,-521.17182908,0.00028177,2]
[426293860,1782250250000,-674.02251254,0.00028222,2]
[426293840,1782250250000,-548.43116106,0.00028177,2]
[426293807,1782250250000,-936.68,0.0002813,7]
[426293813,1782250250000,-151.0,0.00028136,2]
[426293812,1782250250000,-242.15909246,0.00028136,2]
[426293814,1782250250000,-500.0,0.00028156,60]
[426293843,1782250250000,-331.04645617,0.00028177,2]
[426293825,1782250250000,-493.96108637,0.00028177,2]
[426293824,1782250250000,-1215.503102,0.00028177,2]
[426293819,1782250250000,-153.20578076,0.00028177,2]
[426293820,1782250250000,-160.38902949,0.00028177,2]
[426293817,1782250250000,-166.44261997,0.00028174,2]
[426293816,1782250250000,-303.0852517,0.00028174,2]
[426293815,1782250250000,-5044.84610968,0.00028166,2]
[426293822,1782250250000,-760.93069102,0.00028177,2]
[426293818,1782250250000,-340.93825274,0.00028174,2]
[426293821,1782250250000,-678.37449328,0.00028177,2]
[426293823,1782250250000,-824.34872703,0.00028177,2]
[426293826,1782250250000,-387.86224182,0.00028177,2]
[426293842,1782250250000,-628.72933806,0.00028177,2]
[426293838,1782250250000,-665.44097023,0.00028177,2]
[426293841,1782250250000,-1197.50646418,0.00028177,2]
[426293836,1782250250000,-701.27279685,0.00028177,2]
[426293832,1782250250000,-457.91761687,0.00028177,2]
[426293831,1782250250000,-717.78767642,0.00028177,2]
[426293835,1782250250000,-701.24338111,0.00028177,2]
[426293839,1782250250000,-468.14350315,0.00028177,2]
[426293830,1782250250000,-1022.75184817,0.00028177,2]
[426293837,1782250250000,-654.17703902,0.00028177,2]
[426293828,1782250250000,-476.01897157,0.00028177,2]
[426293833,1782250250000,-537.64235977,0.00028177,2]
[426293827,1782250250000,-783.15673268,0.00028177,2]
[426293829,1782250250000,-389.50790175,0.00028177,2]
[426293903,1782250251000,-3562.0,0.00028397,2]
[426293889,1782250251000,-974.8,0.00028267,2]
[426293905,1782250251000,-300.0,0.000284,7]
[426293901,1782250251000,-357.0,0.00028356,14]
[426293904,1782250251000,-6083.0,0.00028397,2]
[426293900,1782250251000,-5044.84610968,0.00028346,2]
[426293893,1782250251000,-708.439499,0.000283,2]
[426293891,1782250251000,-11839.4837862,0.000283,2]
[426293882,1782250251000,-512.35580421,0.0002823,2]
[426293881,1782250251000,-631.11805957,0.00028222,2]
[426293880,1782250251000,-788.66400508,0.00028222,2]
[426293879,1782250251000,-675.95075146,0.00028222,2]
[426293883,1782250251000,-151.27539405,0.00028231,23]
[426293886,1782250251000,-512.35580421,0.00028249,2]
[426293887,1782250251000,-200.0,0.00028257,2]
[426293890,1782250251000,-11839.48378623,0.000283,2]
[426293884,1782250251000,-512.35580421,0.00028233,2]
[426293876,1782250251000,-627.7444442,0.00028222,2]
[426293878,1782250251000,-624.98754841,0.00028222,2]
[426293877,1782250251000,-640.81332938,0.00028222,2]
[426293892,1782250251000,-11839.4837862,0.000283,2]
[426293888,1782250251000,-200.0,0.00028257,2]
[426293902,1782250251000,-1229.0,0.00028397,2]
[426293885,1782250251000,-1919.93,0.0002824,2]
[426293899,1782250251000,-512.35580421,0.00028333,2]
[426293894,1782250251000,-708.43949898,0.000283,2]
[426293923,1782250251000,-4373.89716376,0.000285,30]
[426293922,1782250251000,-372.0998383,0.00027999,2]
[426293921,1782250251000,-627.9001617,0.00027999,2]
[426293920,1782250251000,-734948.56102142,0.000285,30]
[426293915,1782250251000,-814.18765773,0.00028493,2]
[426293919,1782250251000,-1870.01,0.000285,7]
[426293911,1782250251000,-151.27539405,0.0002848,24]
[426293918,1782250251000,-2508.16107959,0.000285,15]
[426293914,1782250251000,-3000.0,0.00028493,2]
[426293910,1782250251000,-2357.38421107,0.00028425,2]
[426293916,1782250251000,-1331.7576687,0.000285,2]
[426293913,1782250251000,-172.08,0.00028493,2]
[426293917,1782250251000,-53590.83034882,0.000285,10]
[426293906,1782250251000,-1915.47834585,0.0002841,2]
[426293907,1782250251000,-512.35580421,0.00028415,2]
[426293897,1782250251000,-512.35580421,0.00028311,2]
[426293909,1782250251000,-512.35580421,0.00028418,2]
[426293908,1782250251000,-337.0,0.00028417,2]
[426293898,1782250251000,-5044.84610968,0.00028316,2]
[426293896,1782250251000,-512.35580421,0.00028302,2]
[426293895,1782250251000,-708.43949898,0.000283,2]
[426293912,1782250251000,-680.0,0.00028485,10]
[426293924,1782250252000,-525.84,0.00021273,2]
[426293925,1782250252000,-150.0,0.00024658,2]
[426293927,1782250252000,-290.42618307,0.00027,7]
[426293926,1782250252000,-150.0,0.00024658,2]